bitfinex/quotes_BTCUSD_20250331
["timestamp","ask_amount","ask_price","bid_price","bid_amount"]
[1743410423017,0.8572057,82336.0,82335.0,8.8e-07]
[1743410423196,0.8532057,82336.0,82335.0,8.8e-07]
[1743410423397,0.8582057,82336.0,82335.0,8.8e-07]
[1743410423641,0.8622057,82336.0,82335.0,8.8e-07]
[1743410427760,0.8622057,82336.0,82297.0,0.0815]
[1743410427761,0.555169,82298.0,82297.0,0.0815]
[1743410427976,0.555169,82298.0,82294.0,0.0455]
[1743410427977,0.555173,82297.0,82294.0,0.0455]
[1743410428227,0.555173,82297.0,82296.0,0.14462992]
[1743410428435,0.555173,82297.0,82296.0,0.00246992]
[1743410428640,0.56726519,82297.0,82296.0,0.00246992]
[1743410429926,0.58680604,82297.0,82296.0,0.00246992]
[1743410430530,0.60583767,82297.0,82296.0,0.00246992]
[1743410431205,0.7261225,82297.0,82296.0,0.00246992]
[1743410432261,0.60583767,82297.0,82296.0,0.00246992]
[1743410432463,0.59129682,82297.0,82296.0,0.00246992]
[1743410436813,0.59129682,82297.0,82296.0,9.2e-07]
[1743410437674,0.57226519,82297.0,82296.0,9.2e-07]
[1743410439595,0.58680604,82297.0,82296.0,9.2e-07]
[1743410440608,0.60583813,82297.0,82296.0,9.2e-07]
[1743410446226,0.59129728,82297.0,82296.0,9.2e-07]
[1743410446483,0.27226519,82297.0,82296.0,9.2e-07]
[1743410446715,0.27226519,82297.0,82296.0,0.12028575]
[1743410446957,0.57226519,82297.0,82296.0,0.1331989]
[1743410447453,0.56926519,82297.0,82296.0,0.1331989]
[1743410447922,0.57026519,82297.0,82296.0,0.1331989]
[1743410448360,0.56926519,82297.0,82296.0,0.1331989]
[1743410448568,0.56726519,82297.0,82296.0,0.1331989]
[1743410449073,0.56826519,82297.0,82296.0,0.1331989]
[1743410449282,0.56726519,82297.0,82296.0,0.1331989]
[1743410451194,0.58629586,82297.0,82296.0,0.1331989]
[1743410457634,0.56726519,82297.0,82296.0,0.1331989]
[1743410457995,0.31209219,82297.0,82296.0,0.2083989]
[1743410458200,0.56726519,82297.0,82296.0,0.2083989]
[1743410459044,0.31209219,82297.0,82296.0,0.2083989]
[1743410460439,0.31209219,82297.0,82296.0,0.4635749]
[1743410460621,0.3,82297.0,82296.0,0.5122749]
[1743410460856,0.012149,82310.0,82307.0,0.242991]
[1743410461084,0.555135,82309.0,82308.0,0.27524877]
[1743410461524,0.555135,82309.0,82308.0,0.13312877]
[1743410461724,0.555135,82309.0,82308.0,0.27524877]
[1743410461931,0.555135,82309.0,82308.0,0.26240483]
[1743410462180,0.555135,82309.0,82308.0,0.27524877]
[1743410466627,0.555135,82309.0,82308.0,0.13312877]
[1743410466876,0.555135,82309.0,82308.0,0.15496394]
[1743410467063,0.555135,82309.0,82308.0,0.14212]
[1743410469715,0.255163,82300.0,82299.0,0.2401]
[1743410469948,0.255163,82300.0,82299.0,0.50246483]
[1743410470149,0.255163,82300.0,82299.0,0.51524299]
[1743410470812,0.27419225,82300.0,82299.0,0.51524299]
[1743410471018,0.27419225,82300.0,82299.0,0.37316299]
[1743410471242,0.27419225,82300.0,82299.0,0.51524299]
[1743410472298,0.27419225,82300.0,82299.0,0.25287816]
[1743410472299,0.57419225,82300.0,82299.0,0.25287816]
[1743410472535,0.57419225,82300.0,82299.0,0.15485816]
[1743410474245,0.57419225,82300.0,82299.0,0.27514299]
[1743410474456,0.31902925,82300.0,82299.0,0.27514299]
[1743410474662,0.31902925,82300.0,82299.0,0.40294299]
[1743410474663,0.57419225,82300.0,82299.0,0.40294299]
[1743410474835,0.57419225,82300.0,82299.0,0.64595899]
[1743410474836,0.31902925,82300.0,82299.0,0.64595899]
[1743410475001,0.31902925,82300.0,82299.0,0.65810899]
[1743410475260,0.56204225,82300.0,82299.0,0.40294299]
[1743410475944,0.57419225,82300.0,82299.0,0.40294299]
[1743410476815,0.57419225,82300.0,82299.0,0.26086299]
[1743410477036,0.57419225,82300.0,82299.0,0.32094299]
[1743410477456,0.555163,82300.0,82299.0,0.32094299]
[1743410479360,0.55470807,82300.0,82299.0,0.32094299]
[1743410480502,0.57373742,82300.0,82299.0,0.32094299]
[1743410482431,0.57373742,82300.0,82299.0,0.17886299]
[1743410482628,0.57373742,82300.0,82299.0,0.32094299]
[1743410482846,0.57373742,82300.0,82299.0,0.27514299]
[1743410484734,0.57373742,82300.0,82299.0,0.13306299]
[1743410484877,0.57373742,82300.0,82299.0,0.27514299]
[1743410485080,0.57373742,82300.0,82299.0,0.26236483]
[1743410485303,0.57373742,82300.0,82299.0,0.27516093]
[1743410487348,0.55470807,82300.0,82299.0,0.27516093]
[1743410490828,0.55470807,82300.0,82299.0,0.35586093]
[1743410491753,0.57373766,82300.0,82299.0,0.35586093]
[1743410493384,0.57373766,82300.0,82299.0,0.13308093]
[1743410493553,0.57373766,82300.0,82299.0,0.27516093]
[1743410493911,0.57373766,82300.0,82299.0,0.27516708]
[1743410495798,0.31857466,82300.0,82299.0,0.53033308]
[1743410496514,0.01902959,82300.0,82299.0,0.65623308]
[1743410496763,0.01902959,82300.0,82299.0,0.40106708]
[1743410496960,0.27419259,82300.0,82299.0,0.40106708]
[1743410497499,0.255163,82300.0,82299.0,0.25898708]
[1743410497701,0.255163,82300.0,82299.0,0.40102708]
[1743410498985,0.255163,82300.0,82299.0,0.25898708]
[1743410499158,0.255163,82300.0,82299.0,0.32062708]
[1743410499316,0.255163,82300.0,82299.0,0.30782483]
[1743410499513,0.255163,82300.0,82299.0,0.32062986]
[1743410499747,0.255163,82300.0,82299.0,0.32162986]
[1743410500147,0.255163,82300.0,82299.0,0.17958986]
[1743410500322,0.24301,82301.0,82299.0,0.32162986]
[1743410500502,0.24301,82301.0,82300.0,0.12028483]
[1743410500715,0.25516,82301.0,82300.0,0.12028483]
[1743410501161,0.25516,82301.0,82300.0,0.13308986]
[1743410502152,0.24301,82301.0,82300.0,0.13308986]
[1743410502562,0.25516,82301.0,82300.0,0.13308986]
[1743410502970,0.25516,82301.0,82300.0,0.13408986]
[1743410506410,0.543005,82303.0,82300.0,0.13408986]
[1743410506611,0.243007,82302.0,82300.0,0.13408986]
[1743410506973,0.24301,82301.0,82300.0,0.13408986]
[1743410507153,0.24301,82301.0,82300.0,0.13308986]
[1743410507351,0.3,82303.0,82300.0,0.13308986]
[1743410507555,0.3,82308.0,82303.0,0.083]
[1743410507902,0.542998,82305.0,82304.0,0.13306731]
[1743410508217,0.3,82305.0,82304.0,0.13306731]
[1743410508423,0.3,82305.0,82304.0,0.37606831]
[1743410508628,0.3,82315.0,82312.0,0.242977]
[1743410508942,0.3,82315.0,82314.0,0.38112]
[1743410509167,0.3,82315.0,82314.0,0.50140483]
[1743410509590,0.3,82315.0,82314.0,0.51416282]
[1743410509786,0.001,82315.0,82314.0,0.51416282]
[1743410510142,0.3,82317.0,82315.0,0.242968]
[1743410510143,0.542964,82317.0,82315.0,0.242968]
[1743410510344,0.3,82317.0,82316.0,0.12028483]
[1743410510556,0.3,82317.0,82316.0,0.37539883]
[1743410510765,0.3,82317.0,82316.0,0.38815682]
[1743410511046,0.255089,82324.0,82321.0,0.24295]
[1743410511247,0.012146,82327.0,82322.0,0.12028483]
[1743410511528,0.3,82325.0,82324.0,0.242942]
[1743410511702,0.555092,82323.0,82322.0,0.01270866]
[1743410511904,0.555092,82323.0,82322.0,0.12028483]
[1743410512269,0.55556066,82323.0,82322.0,0.13299349]
[1743410513980,0.55556066,82323.0,82322.0,0.13499349]
[1743410514817,0.55556066,82323.0,82322.0,0.27699349]
[1743410515017,0.55556066,82323.0,82322.0,0.27899349]
[1743410515557,0.55556066,82323.0,82322.0,0.13699349]
[1743410515774,0.55556066,82323.0,82322.0,0.27899349]
[1743410517434,0.55556066,82323.0,82322.0,0.01670866]
[1743410517569,0.55556066,82323.0,82322.0,0.15870866]
[1743410517968,0.55556066,82323.0,82322.0,0.146]
[1743410518549,0.55556066,82323.0,82322.0,0.144]
[1743410518731,0.55556066,82323.0,82322.0,0.142]
[1743410519070,0.55556066,82323.0,82322.0,0.143]
[1743410519276,0.55556066,82323.0,82322.0,0.26328483]
[1743410519683,0.55556066,82323.0,82322.0,0.26428483]
[1743410520533,0.57458564,82323.0,82322.0,0.26428483]
[1743410522574,0.57458564,82323.0,82322.0,0.002]
[1743410522901,0.57458564,82323.0,82322.0,0.14396]
[1743410523062,0.65538564,82323.0,82322.0,0.14396]
[1743410523287,0.65538564,82323.0,82322.0,0.14296]
[1743410523692,0.65638564,82323.0,82322.0,0.14296]
[1743410524115,0.57558564,82323.0,82322.0,0.14296]
[1743410524546,0.57558564,82323.0,82322.0,0.26324483]
[1743410524955,0.57558564,82323.0,82322.0,0.26224483]
[1743410525413,0.57658564,82323.0,82322.0,0.26224483]
[1743410527415,0.55756066,82323.0,82322.0,0.26224483]
[1743410530421,0.57658631,82323.0,82322.0,0.26224483]
[1743410531065,0.57658631,82323.0,82322.0,0.2749188]
[1743410531868,0.57558631,82323.0,82322.0,0.2749188]
[1743410532217,0.57458631,82323.0,82322.0,0.2759188]
[1743410532547,0.57458631,82323.0,82322.0,0.2769188]
[1743410534165,0.57458631,82323.0,82322.0,0.1349588]
[1743410534368,0.57458631,82323.0,82322.0,0.2769188]
[1743410534572,0.57458631,82323.0,82322.0,0.26424483]
[1743410534799,0.57458631,82323.0,82322.0,0.27690424]
[1743410534996,0.57458631,82323.0,82322.0,0.26424483]
[1743410535203,0.57458631,82323.0,82322.0,0.27690666]
[1743410535377,0.57458631,82323.0,82322.0,0.26424483]
[1743410535576,0.57458631,82323.0,82322.0,0.27690666]
[1743410535861,0.57458631,82323.0,82322.0,0.26424483]
[1743410536031,0.57458631,82323.0,82322.0,0.27690666]
[1743410536218,0.57458631,82323.0,82322.0,0.26424483]
[1743410536413,0.57458631,82323.0,82322.0,0.27690666]
[1743410536658,0.57458631,82323.0,82322.0,0.26424483]
[1743410536865,0.57458631,82323.0,82322.0,0.27690908]
[1743410537579,0.55556066,82323.0,82322.0,0.27690908]
[1743410538644,0.55556066,82323.0,82322.0,0.26424483]
[1743410540434,0.57458582,82323.0,82322.0,0.26424483]
[1743410542639,0.01949382,82323.0,82322.0,0.34094483]
[1743410542816,0.01949382,82323.0,82322.0,0.59603983]
[1743410543022,0.01949382,82323.0,82322.0,0.60869341]
[1743410543255,0.01949382,82323.0,82322.0,0.65529341]
[1743410544214,0.01949382,82323.0,82322.0,0.65329341]
[1743410544673,0.01949382,82323.0,82322.0,0.65929341]
[1743410545100,0.01949382,82323.0,82322.0,0.65629341]
[1743410545324,0.01949382,82323.0,82322.0,0.66029341]
[1743410547525,0.00046866,82323.0,82322.0,0.66029341]
[1743410556041,0.00046866,82323.0,82322.0,1.29105341]
[1743410559170,0.00046866,82323.0,82322.0,1.14909341]
[1743410559376,0.00046866,82323.0,82322.0,1.29093341]
[1743410562762,0.00046866,82323.0,82322.0,1.21423341]
[1743410577046,0.25556066,82323.0,82322.0,0.77069841]
[1743410577481,0.25556066,82323.0,82322.0,0.91249841]
[1743410577948,0.25556066,82323.0,82322.0,0.77069841]
[1743410578154,0.25556066,82323.0,82322.0,0.91249841]
[1743410578372,0.55556066,82323.0,82322.0,0.91249841]
[1743410579243,0.55556066,82323.0,82322.0,0.77069841]
[1743410579460,0.55556066,82323.0,82322.0,0.91249841]
[1743410580572,0.55556066,82323.0,82322.0,0.65041358]
[1743410580787,0.55556066,82323.0,82322.0,0.79221358]
[1743410580788,0.63336066,82323.0,82322.0,0.79221358]
[1743410581002,0.65238592,82323.0,82322.0,0.79221358]
[1743410581681,0.65238592,82323.0,82322.0,0.78821358]
[1743410581919,0.65238592,82323.0,82322.0,0.90849841]
[1743410582131,0.57458592,82323.0,82322.0,0.90849841]
[1743410582340,0.31949392,82323.0,82322.0,1.16359341]
[1743410582578,0.31949392,82323.0,82322.0,0.90949841]
[1743410582772,0.31949392,82323.0,82322.0,1.15244641]
[1743410583008,0.56243892,82323.0,82322.0,0.90949841]
[1743410583214,0.56243892,82323.0,82322.0,0.90649841]
[1743410583395,0.56243892,82323.0,82322.0,0.90749841]
[1743410583636,0.57458592,82323.0,82322.0,0.90749841]
[1743410584042,0.57458592,82323.0,82322.0,0.90549841]
[1743410584423,0.57458592,82323.0,82322.0,0.90949841]
[1743410584880,0.57458592,82323.0,82322.0,0.91249841]
[1743410586724,0.57458592,82323.0,82322.0,0.77069841]
[1743410586934,0.57458592,82323.0,82322.0,0.91249841]
[1743410587364,0.55556066,82323.0,82322.0,0.91249841]
[1743410587564,0.55556066,82323.0,82322.0,0.90849841]
[1743410587769,0.55556066,82323.0,82322.0,0.90549841]
[1743410587974,0.55556066,82323.0,82322.0,0.90749841]
[1743410588180,0.55556066,82323.0,82322.0,0.90949841]
[1743410590438,0.57458507,82323.0,82322.0,0.90949841]
[1743410590690,0.57458507,82323.0,82322.0,0.76769841]
[1743410590869,0.57458507,82323.0,82322.0,0.78921358]
[1743410591768,0.57458507,82323.0,82322.0,0.78721358]
[1743410592576,0.57458507,82323.0,82322.0,0.90549841]
[1743410594856,0.57458507,82323.0,82322.0,0.78521358]
[1743410597372,0.55556066,82323.0,82322.0,0.78521358]
[1743410599124,0.55556066,82323.0,82322.0,0.15445358]
[1743410600430,0.57458616,82323.0,82322.0,0.15445358]
[1743410603171,0.57458616,82323.0,82322.0,0.15441358]
[1743410603545,0.555141,82307.0,82306.0,0.63088]
[1743410603743,0.555141,82307.0,82306.0,0.89292483]
[1743410604327,0.57416921,82307.0,82306.0,0.90555718]
[1743410604900,0.57416921,82307.0,82306.0,0.90955718]
[1743410605526,0.57416921,82307.0,82306.0,0.91155718]
[1743410605967,0.57416921,82307.0,82306.0,0.79127235]
[1743410606122,0.57416921,82307.0,82306.0,0.78727235]
[1743410606518,0.57416921,82307.0,82306.0,0.78927235]
[1743410607410,0.555141,82307.0,82306.0,0.78927235]
[1743410609017,0.555141,82307.0,82306.0,0.01663235]
[1743410609245,0.80712335,82307.0,82306.0,0.01663235]
[1743410609691,0.80712335,82307.0,82306.0,0.004]
[1743410609902,0.80712335,82307.0,82306.0,0.002]
[1743410610384,0.555182,82294.0,82293.0,0.2401]
[1743410610595,0.555182,82294.0,82293.0,0.38186]
[1743410611050,0.555182,82294.0,82293.0,0.39464308]
[1743410611712,0.555182,82294.0,82293.0,0.39768997]
[1743410611930,0.58651683,82294.0,82293.0,0.39768997]
[1743410612248,0.66881683,82294.0,82293.0,0.25592997]
[1743410612443,0.66881683,82294.0,82293.0,0.25792997]
[1743410613300,0.66881683,82294.0,82293.0,0.25492997]
[1743410613529,0.66881683,82294.0,82293.0,0.25292997]
[1743410615571,0.67778518,82294.0,82293.0,0.25292997]
[1743410616233,0.66881683,82294.0,82293.0,0.25292997]
[1743410616995,0.66881683,82294.0,82293.0,0.01282997]
[1743410617204,0.69234138,82294.0,82293.0,0.01282997]
[1743410617405,0.555219,82282.0,82274.0,0.14176]
[1743410617755,0.64565985,82282.0,82274.0,0.14176]
[1743410618825,0.64565985,82282.0,82281.0,0.005]
[1743410619479,0.555265,82267.0,82266.0,0.002]
[1743410619736,0.555265,82267.0,82266.0,0.26404483]
[1743410620238,0.555265,82267.0,82266.0,0.13132969]
[1743410620448,0.5743014,82267.0,82266.0,0.27308969]
[1743410620663,0.5743482,82267.0,82266.0,0.26404483]
[1743410621101,0.5743482,82267.0,82266.0,0.26704483]
[1743410621307,0.5743482,82267.0,82266.0,0.27608969]
[1743410621928,0.5743482,82267.0,82266.0,0.27708969]
[1743410627449,0.5553118,82267.0,82266.0,0.27708969]
[1743410629361,0.5553118,82267.0,82266.0,0.13532969]
[1743410629685,0.5553118,82267.0,82266.0,0.26804483]
[1743410629896,0.5553118,82267.0,82266.0,0.27712485]
[1743410630839,0.5553118,82267.0,82266.0,0.01508002]
[1743410631347,0.5553118,82267.0,82266.0,0.006]
[1743410631556,0.5553118,82267.0,82266.0,0.005]
[1743410631777,0.57434848,82267.0,82266.0,0.005]
[1743410632227,0.57434848,82267.0,82266.0,0.002]
[1743410632440,0.57434848,82267.0,82266.0,0.003]
[1743410632664,0.57534848,82267.0,82266.0,0.003]
[1743410633065,0.57534848,82267.0,82266.0,0.002]
[1743410633283,0.57634848,82267.0,82266.0,0.002]
[1743410634110,0.58527841,82267.0,82266.0,0.002]
[1743410634531,0.59981926,82267.0,82266.0,0.002]
[1743410639859,0.58078258,82267.0,82266.0,0.002]
[1743410642473,0.5998217,82267.0,82266.0,0.002]
[1743410649934,0.63776041,82267.0,82266.0,0.002]
[1743410650899,0.61872129,82267.0,82266.0,0.002]
[1743410653421,0.63776119,82267.0,82266.0,0.002]
[1743410653595,0.7324997,82267.0,82266.0,0.002]
[1743410654061,0.63776119,82267.0,82266.0,0.002]
[1743410654900,0.72026119,82267.0,82266.0,0.002]
[1743410655452,0.555312,82252.0,82246.0,0.0489]
[1743410655664,0.555312,82252.0,82251.0,0.14576]
[1743410656302,0.5743533,82252.0,82251.0,0.14576]
[1743410656942,0.5743533,82252.0,82251.0,0.004]
[1743410657156,0.58575456,82252.0,82251.0,0.14576]
[1743410657770,0.60855713,82252.0,82251.0,0.14576]
[1743410658277,0.62047137,82252.0,82251.0,0.14676]
[1743410658817,0.5976688,82252.0,82251.0,0.14676]
[1743410659453,0.5786275,82252.0,82251.0,0.14676]
[1743410660723,0.56722624,82252.0,82251.0,0.14676]
[1743410661800,0.60522688,82252.0,82251.0,0.14576]
[1743410662485,0.62426892,82252.0,82251.0,0.14576]
[1743410666890,0.62426892,82252.0,82251.0,0.004]
[1743410667720,0.61976773,82252.0,82251.0,0.004]
[1743410668350,0.62776773,82252.0,82251.0,0.004]
[1743410670018,1.04116773,82252.0,82251.0,1e-06]
[1743410671785,1.06021112,82252.0,82251.0,1e-06]
[1743410675620,0.56987685,82244.0,82242.0,0.14172]
[1743410675825,0.56987685,82244.0,82240.0,0.2401]
[1743410676033,0.56987685,82244.0,82243.0,0.00911517]
[1743410676248,0.56987685,82244.0,82243.0,0.00122]
[1743410676919,0.69016168,82244.0,82243.0,0.00122]
[1743410677139,0.56987685,82244.0,82243.0,0.00122]
[1743410677352,0.57982483,82244.0,82243.0,0.00122]
[1743410677772,0.58182483,82244.0,82243.0,0.00122]
[1743410678845,0.58482483,82244.0,82243.0,0.00122]
[1743410680619,0.60386916,82244.0,82243.0,0.00122]
[1743410681801,0.58632831,82244.0,82243.0,0.00122]
[1743410681997,0.58332831,82244.0,82243.0,0.00122]
[1743410682404,0.58532831,82244.0,82243.0,0.00122]
[1743410682612,0.58532831,82244.0,82243.0,0.00912694]
[1743410682841,0.58532831,82244.0,82243.0,0.00122]
[1743410683053,0.58732831,82244.0,82243.0,0.00912694]
[1743410683266,0.58732831,82244.0,82243.0,0.00122]
[1743410683461,0.58732831,82244.0,82243.0,0.00912694]
[1743410683612,0.58732831,82244.0,82243.0,0.00122]
[1743410683996,0.58732831,82244.0,82243.0,0.00912694]
[1743410684191,0.58732831,82244.0,82243.0,0.00122]
[1743410684400,0.62530763,82244.0,82243.0,0.00912694]
[1743410684661,0.62530763,82244.0,82243.0,0.00122]
[1743410684864,0.62530763,82244.0,82243.0,0.00912694]
[1743410687481,0.6062633,82244.0,82243.0,0.00912694]
[1743410687676,0.60614172,82244.0,82243.0,0.00912694]
[1743410690472,0.62518558,82244.0,82243.0,0.00912694]
[1743410691530,0.62518558,82244.0,82243.0,0.00122]
[1743410693606,0.63972643,82244.0,82243.0,0.00122]
[1743410695323,0.63772643,82244.0,82243.0,0.00122]
[1743410695527,0.64072643,82244.0,82243.0,0.00122]
[1743410695775,0.63872643,82244.0,82243.0,0.00122]
[1743410696162,0.64072643,82244.0,82243.0,0.00122]
[1743410696358,0.63772643,82244.0,82243.0,0.00122]
[1743410696616,0.63572643,82244.0,82243.0,0.00122]
[1743410696841,0.66156098,82244.0,82243.0,0.00122]
[1743410697253,0.66456098,82244.0,82243.0,0.00122]
[1743410697638,0.64551712,82244.0,82243.0,0.00122]
[1743410699365,0.62268257,82244.0,82243.0,0.00122]
[1743410700435,0.62718606,82244.0,82243.0,0.00122]
[1743410700873,0.62718606,82244.0,82243.0,0.04792]
[1743410701966,0.62718606,82244.0,82243.0,0.1896]
[1743410702171,0.62118606,82244.0,82243.0,0.1896]
[1743410702579,0.62418606,82244.0,82243.0,0.1896]
[1743410705420,0.61523808,82244.0,82243.0,0.1896]
[1743410706952,0.61523808,82244.0,82243.0,0.04792]
[1743410707177,0.61523808,82244.0,82243.0,0.1896]
[1743410707395,0.59619374,82244.0,82243.0,0.1896]
[1743410710374,0.61523732,82244.0,82243.0,0.1896]
[1743410711777,0.577258,82244.0,82243.0,0.1896]
[1743410712192,0.577258,82244.0,82243.0,0.19751607]
[1743410717421,0.55821442,82244.0,82243.0,0.19751607]
[1743410720020,0.59624708,82244.0,82243.0,0.19751607]
[1743410720756,0.57725801,82244.0,82243.0,0.19751607]
[1743410721567,0.61529079,82244.0,82243.0,0.19751607]
[1743410722407,0.57725801,82244.0,82243.0,0.19751607]
[1743410726203,0.57625801,82244.0,82243.0,0.3931009]
[1743410726821,0.57425801,82244.0,82243.0,0.2514209]
[1743410727019,0.57425801,82244.0,82243.0,0.3930609]
[1743410727245,0.57425801,82244.0,82243.0,0.38514483]
[1743410727444,0.55521442,82244.0,82243.0,0.39302107]
[1743410729259,0.55521442,82244.0,82243.0,0.31772107]
[1743410730350,0.57425715,82244.0,82243.0,0.31772107]
[1743410732451,0.57425715,82244.0,82243.0,0.17608107]
[1743410732652,0.57425715,82244.0,82243.0,0.30980483]
[1743410732962,0.57425715,82244.0,82243.0,0.31766237]
[1743410735756,0.57425715,82244.0,82243.0,0.27096237]
[1743410735967,0.57377276,82244.0,82243.0,0.27096237]
[1743410736961,0.5965955,82244.0,82243.0,0.27096237]
[1743410737530,0.57755277,82244.0,82243.0,0.27096237]
[1743410738328,0.55473003,82244.0,82243.0,0.27096237]
[1743410738541,0.55473003,82244.0,82243.0,0.00907754]
[1743410738740,0.59276794,82244.0,82243.0,0.00907754]
[1743410739127,0.59276794,82244.0,82243.0,0.00122]
[1743410739697,0.59576794,82244.0,82243.0,0.00122]
[1743410740454,0.61481185,82244.0,82243.0,0.00122]
[1743410741708,0.61681185,82244.0,82243.0,0.00122]
[1743410746307,0.57877394,82244.0,82243.0,0.00122]
[1743410746627,0.61680535,82244.0,82243.0,0.00122]
[1743410746928,0.55973003,82244.0,82243.0,0.12150483]
[1743410747634,0.55973003,82244.0,82243.0,0.12935449]
[1743410748077,0.55773003,82244.0,82243.0,0.12935449]
[1743410748459,0.55973003,82244.0,82243.0,0.12935449]
[1743410748814,0.55673003,82244.0,82243.0,0.12935449]
[1743410749237,0.55873003,82244.0,82243.0,0.12935449]
[1743410750233,0.57736817,82244.0,82243.0,0.12935449]
[1743410756031,0.58877686,82244.0,82243.0,0.12935449]
[1743410756205,0.58877686,82244.0,82243.0,0.00784966]
[1743410756408,0.58877686,82244.0,82243.0,0.14940966]
[1743410756610,0.58877686,82244.0,82243.0,0.14156]
[1743410757311,0.56973399,82244.0,82243.0,0.14156]
[1743410759432,0.56973399,82244.0,82243.0,0.22116]
[1743410759606,0.31540869,82244.0,82243.0,0.62972583]
[1743410759832,0.31540869,82244.0,82243.0,0.64968411]
[1743410760022,0.004,82244.0,82243.0,0.64968411]
[1743410760437,0.002,82244.0,82243.0,0.64968411]
[1743410760822,0.545178,82244.0,82243.0,0.39434411]
[1743410761023,0.302,82244.0,82243.0,0.39434411]
[1743410761438,0.545178,82244.0,82243.0,0.39434411]
[1743410761614,0.543178,82244.0,82243.0,0.39434411]
[1743410761817,0.3,82244.0,82243.0,0.39434411]
[1743410762575,0.543178,82244.0,82243.0,0.39434411]
[1743410762981,0.555336,82244.0,82243.0,0.39434411]
[1743410763338,0.555336,82244.0,82243.0,0.38654483]
[1743410763538,0.543178,82244.0,82243.0,0.3942978]
[1743410763799,0.3,82244.0,82243.0,0.6374788]
[1743410764360,0.3,82244.0,82243.0,0.3942978]
[1743410765883,0.543178,82244.0,82243.0,0.3942978]
[1743410766220,0.555336,82244.0,82243.0,0.3942978]
[1743410766856,0.543178,82244.0,82243.0,0.3942978]
[1743410767196,0.3,82244.0,82243.0,0.3942978]
[1743410767836,0.3,82244.0,82243.0,0.6374788]
[1743410770505,0.56221948,82244.0,82243.0,0.3942978]
[1743410771030,0.31904148,82244.0,82243.0,0.3942978]
[1743410772248,0.31904148,82244.0,82243.0,0.6374788]
[1743410772459,0.01904148,82244.0,82243.0,0.6496378]
[1743410772861,0.3,82257.0,82255.0,0.0766]
[1743410773096,0.543141,82257.0,82256.0,0.12028483]
[1743410773332,0.543141,82257.0,82256.0,0.12799294]
[1743410773553,0.33140901,82257.0,82256.0,0.12799294]
[1743410773760,0.57454901,82257.0,82256.0,0.12799294]
[1743410774473,0.58670601,82257.0,82256.0,0.12799294]
[1743410775851,0.58670601,82257.0,82256.0,0.26951294]
[1743410777458,0.56766664,82257.0,82256.0,0.26951294]
[1743410780778,0.58670592,82257.0,82256.0,0.26951294]
[1743410781348,0.33140892,82257.0,82256.0,0.26951294]
[1743410781519,0.57454892,82257.0,82256.0,0.26951294]
[1743410781697,0.58670592,82257.0,82256.0,0.26951294]
[1743410782081,0.34356552,82257.0,82256.0,0.26951294]
[1743410783741,0.28670592,82257.0,82256.0,0.26951294]
[1743410784153,0.28670592,82257.0,82256.0,0.00770811]
[1743410784321,0.28670592,82257.0,82256.0,0.14918811]
[1743410784522,0.28670592,82257.0,82256.0,0.14914192]
[1743410785826,0.58670592,82257.0,82256.0,0.14914192]
[1743410787363,0.56766664,82257.0,82256.0,0.14914192]
[1743410787995,0.56766664,82257.0,82256.0,0.26942675]
[1743410790487,0.58670659,82257.0,82256.0,0.26942675]
[1743410793127,0.03140959,82257.0,82256.0,0.26942675]
[1743410793355,0.03140959,82257.0,82256.0,0.31692675]
[1743410793509,0.57454959,82257.0,82256.0,0.31692675]
[1743410793710,0.58670659,82257.0,82256.0,0.31692675]
[1743410795133,0.57454959,82257.0,82256.0,0.31692675]
[1743410795355,0.33140959,82257.0,82256.0,0.31692675]
[1743410795763,0.57454959,82257.0,82256.0,0.31692675]
[1743410796569,0.58670659,82257.0,82256.0,0.31692675]
[1743410796978,0.27433695,82257.0,82256.0,0.31692675]
[1743410797513,0.255297,82257.0,82256.0,0.31692675]
[1743410797713,0.26725442,82257.0,82256.0,0.31692675]
[1743410799962,0.255297,82257.0,82256.0,0.31692675]
[1743410800304,0.27433611,82257.0,82256.0,0.31692675]
[1743410801715,0.26217911,82257.0,82256.0,0.31692675]
[1743410802683,0.27433611,82257.0,82256.0,0.31692675]
[1743410803306,0.27433611,82257.0,82256.0,0.17544675]
[1743410803520,0.27433611,82257.0,82256.0,0.26938675]
[1743410807290,0.255297,82257.0,82256.0,0.26938675]
[1743410808100,0.25554823,82258.0,82256.0,0.26938675]
[1743410808353,0.24314,82257.0,82256.0,0.14910192]
[1743410808616,0.255297,82257.0,82256.0,0.26938675]
[1743410810675,0.27433614,82257.0,82256.0,0.26938675]
[1743410811271,0.27433614,82257.0,82256.0,0.27038675]
[1743410814608,0.27433614,82257.0,82256.0,0.12894675]
[1743410814826,0.27433614,82257.0,82256.0,0.27038675]
[1743410817500,0.255297,82257.0,82256.0,0.27038675]
[1743410820711,0.27433629,82257.0,82256.0,0.27038675]
[1743410821583,0.27433629,82257.0,82256.0,0.15006192]
[1743410821779,0.57433629,82257.0,82256.0,0.00866192]
[1743410821984,0.57433629,82257.0,82256.0,0.15006192]
[1743410823862,0.57433629,82257.0,82256.0,0.14906192]
[1743410824347,0.57533629,82257.0,82256.0,0.14906192]
[1743410824600,0.57433629,82257.0,82256.0,0.14906192]
[1743410825976,0.57533629,82257.0,82256.0,0.14906192]
[1743410826502,0.57433629,82257.0,82256.0,0.14906192]
[1743410826728,0.57633629,82257.0,82256.0,0.14906192]
[1743410827409,0.557297,82257.0,82256.0,0.14906192]
[1743410829993,0.002,82257.0,82256.0,0.51248975]
[1743410830206,0.002,82257.0,82256.0,0.52464675]
[1743410830409,0.002,82257.0,82256.0,0.60364675]
[1743410831728,0.002,82257.0,82256.0,0.65234675]
[1743410831885,0.01903879,82259.0,82258.0,0.243137]
[1743410832103,0.01903879,82259.0,82258.0,0.38321559]
[1743410833171,0.01903879,82259.0,82258.0,0.38521559]
[1743410834247,0.01903879,82259.0,82258.0,0.53852259]
[1743410834501,0.01903879,82259.0,82258.0,0.78165959]
[1743410834724,0.01903879,82259.0,82258.0,0.93521559]
[1743410835918,0.01903879,82259.0,82258.0,1.01561559]
[1743410837407,0.3,82270.0,82266.0,0.255268]
[1743410837623,0.3,82271.0,82266.0,0.38312231]
[1743410837823,0.01194731,82268.0,82266.0,0.38312231]
[1743410838779,0.3,82270.0,82266.0,0.38512231]
[1743410839298,0.01200917,82268.0,82266.0,0.38512231]
[1743410839816,0.3,82270.0,82269.0,0.243104]
[1743410840061,0.012153,82279.0,82272.0,0.060154]
[1743410840306,0.01219588,82279.0,82278.0,0.243078]
[1743410840542,0.243048,82288.0,82283.0,0.012153]
[1743410840771,0.243057,82285.0,82284.0,0.12028483]
[1743410841022,0.25551769,82285.0,82284.0,0.12785431]
[1743410841259,0.28670367,82285.0,82284.0,0.12028483]